bitfinex/quotes_ETHUSD_20260102
["timestamp","ask_amount","ask_price","bid_price","bid_amount"]
[1767377611234,6.40779186,3121.2,3120.5,3.14310844]
[1767377611434,0.03201536,3121.1,3120.5,3.14310844]
[1767377611634,0.89108438,3121.0,3120.5,3.14310844]
[1767377611848,0.92309974,3121.0,3120.5,3.14310844]
[1767377612151,8.8788284,3121.2,3120.5,2.30310844]
[1767377612839,3.20389593,3121.2,3120.6,2.33515355]
[1767377613221,3.20382604,3121.3,3120.6,2.30310844]
[1767377613222,6.40770986,3121.3,3120.6,2.30310844]
[1767377613721,6.40770986,3121.3,3120.7,2.33515253]
[1767377614146,6.40770986,3121.3,3120.7,2.30310844]
[1767377614318,0.72769125,3121.2,3120.7,2.30310844]
[1767377615223,3.20399859,3121.1,3120.7,2.30310844]
[1767377616157,0.86920261,3121.4,3120.7,2.30310844]
[1767377616450,0.002,3121.2,3120.7,2.30310844]
[1767377620522,0.002,3121.2,3120.8,2.30310844]
[1767377620727,0.002,3121.2,3121.0,2.30310844]
[1767377626146,0.002,3121.2,3120.7,2.30310844]
[1767377626349,2.47303654,3121.2,3120.5,0.001]
[1767377626549,2.47103654,3121.0,3120.5,0.001]
[1767377627960,0.24730365,3121.1,3120.5,2.30410844]
[1767377629265,2.71834019,3121.1,3120.5,2.30410844]
[1767377629780,2.71834019,3121.1,3120.5,0.001]
[1767377632279,5.67513778,3121.0,3120.5,0.001]
[1767377632479,6.83509013,3121.0,3120.5,0.001]
[1767377632644,3.20410124,3121.0,3120.5,2.30410844]
[1767377633542,3.20598515,3121.2,3120.5,2.30410844]
[1767377633543,0.002,3121.2,3120.5,2.30410844]
[1767377633744,0.002,3121.5,3121.1,2.30310844]
[1767377633945,0.002,3121.5,3120.8,2.30310844]
[1767377634186,2.72034019,3121.5,3120.8,2.30310844]
[1767377634468,0.03201536,3121.4,3120.8,2.30310844]
[1767377635044,2.72034019,3121.5,3120.8,2.30310844]
[1767377636049,5.92396043,3121.5,3120.9,0.03204203]
[1767377636270,5.92396043,3121.5,3120.9,2.30310844]
[1767377636945,3.45292389,3121.5,3120.9,2.30310844]
[1767377637583,2.47103654,3121.8,3121.0,2.30310844]
[1767377637794,2.47303654,3121.9,3121.1,2.30310844]
[1767377637996,0.002,3121.9,3121.2,6.40779186]
[1767377638161,0.002,3121.9,3121.3,2.30310844]
[1767377640378,0.002,3121.9,3121.3,5.50689584]
[1767377640588,0.002,3121.9,3121.3,3.17419455]
[1767377641188,0.002,3121.9,3121.3,6.37795541]
[1767377641395,0.002,3121.9,3121.3,3.17419455]
[1767377641769,0.002,3121.5,3121.3,3.17419455]
[1767377644095,0.002,3121.5,3121.4,2.40372301]
[1767377645987,0.002,3122.3,3121.8,2.40372301]
[1767377647158,0.002,3122.3,3122.0,2.40372301]
[1767377649070,2.32974638,3122.8,3122.3,2.40372301]
[1767377649071,0.002,3122.8,3122.3,2.40372301]
[1767377649379,2.32774638,3123.1,3122.3,2.40372301]
[1767377649380,2.32774638,3122.9,3122.3,0.84]
[1767377649788,2.32774638,3122.7,3122.1,2.40372301]
[1767377649966,0.002,3123.0,3122.4,2.40372301]
[1767377650859,0.002,3123.0,3122.6,2.40372301]
[1767377651677,0.002,3123.0,3122.6,5.60618119]
[1767377651879,0.002,3123.0,3122.7,2.40372301]
[1767377652768,0.002,3123.2,3123.0,2.40372301]
[1767377653965,5.53119545,3123.6,3123.1,6.28375661]
[1767377653966,0.002,3123.6,3123.1,6.28375661]
[1767377654168,2.32974638,3123.6,3122.9,0.84]
[1767377654489,2.56272102,3123.6,3122.8,0.84]
[1767377654703,2.32774638,3123.5,3122.8,0.84]
[1767377655001,6.63784653,3123.6,3122.8,0.84]
[1767377655002,3.20343424,3123.6,3122.9,2.40372301]
[1767377655995,0.002,3123.6,3122.9,2.40372301]
[1767377656290,0.002,3123.6,3122.9,5.60587002]
[1767377656495,0.002,3123.6,3122.9,6.46601431]
[1767377656695,0.002,3123.6,3122.9,3.2638673]
[1767377656898,2.32774638,3122.9,3121.4,2.40472301]
[1767377657074,2.32774638,3122.8,3121.9,3.8800336]
[1767377657394,2.56052102,3122.7,3121.8,2.40372301]
[1767377658280,8.73266534,3122.6,3121.8,2.40372301]
[1767377658480,5.53020586,3122.6,3121.9,2.40372301]
[1767377659007,8.73266534,3122.6,3121.9,2.40372301]
[1767377659369,2.32774638,3122.5,3121.6,0.03203485]
[1767377659707,3.22429038,3122.5,3121.7,0.84]
[1767377659873,3.22429038,3122.5,3121.7,3.24372301]
[1767377660300,2.32774638,3122.3,3121.8,0.84]
[1767377661179,2.32774638,3122.3,3121.9,0.84]
[1767377661419,3.20245948,3122.6,3121.9,0.84]
[1767377661617,6.98121701,3122.6,3121.9,0.84]
[1767377661911,3.77875753,3122.6,3121.9,0.84]
[1767377662275,6.98121701,3122.6,3121.9,0.84]
[1767377662474,2.32774638,3122.5,3121.9,0.84]
[1767377664006,2.32774638,3122.5,3121.7,2.40372301]
[1767377664206,3.28192018,3122.5,3122.0,0.84]
[1767377664377,6.40532922,3122.4,3122.0,0.84]
[1767377664774,3.20266461,3122.4,3122.0,0.84]
[1767377664974,6.4845191,3122.5,3122.0,0.84]
[1767377665406,9.68711802,3122.5,3122.0,0.84]
[1767377665604,1.02634161,3122.4,3122.0,0.84]
[1767377666413,3.20276719,3122.3,3122.0,0.84]
[1767377666830,3.20276719,3122.3,3121.7,2.40372301]
[1767377667006,5.48365877,3122.3,3121.8,0.84]
[1767377667213,2.28089158,3122.2,3121.6,0.001]
[1767377667509,2.28089158,3122.2,3121.7,0.84]
[1767377667690,3.25216834,3122.2,3121.7,0.84]
[1767377668087,1.05088207,3125.4,3121.8,2.4041178]
[1767377668088,0.16,3123.5,3121.8,2.4041178]
[1767377668401,2.28089158,3122.6,3121.9,2.372085]
[1767377668599,3.20256204,3122.5,3121.9,2.372085]
[1767377670627,3.20256204,3122.5,3121.9,5.57525713]
[1767377670830,5.48338669,3122.6,3121.9,5.57525713]
[1767377671232,5.48338669,3122.6,3121.9,2.372085]
[1767377672405,5.48338669,3122.6,3121.9,5.57524463]
[1767377674638,5.48338669,3122.6,3122.0,2.33964687]
[1767377675130,0.002,3122.8,3122.1,2.33964687]
[1767377675427,0.002,3122.8,3122.3,2.33964687]
[1767377675629,0.002,3122.8,3122.3,2.37167454]
[1767377676233,2.30769468,3123.2,3122.5,2.33964687]
[1767377676437,2.30769468,3123.2,3122.5,2.57681432]
[1767377676638,2.30769468,3123.5,3122.5,2.57681432]
[1767377677930,5.50932568,3123.5,3122.7,2.33964687]
[1767377678139,5.50932568,3123.5,3122.8,3.17964687]
[1767377678426,5.50932568,3123.5,3122.9,2.33964687]
[1767377679817,2.30969468,3123.5,3122.9,2.33964687]
[1767377680699,2.30969468,3123.5,3123.0,2.33964687]
[1767377681134,2.30769468,3123.4,3123.1,0.84]
[1767377682128,3.20174174,3123.3,3122.7,2.33964687]
[1767377682317,2.30769468,3123.2,3122.7,2.33964687]
[1767377682507,2.30769468,3123.2,3122.8,0.84]
[1767377682709,2.30769468,3123.2,3122.2,5.54245707]
[1767377682909,2.30769468,3123.2,3122.3,0.84]
[1767377684906,2.30769468,3123.0,3122.3,3.17964687]
[1767377685109,2.30769468,3123.0,3122.4,0.03202664]
[1767377685337,2.30769468,3123.0,3122.3,6.38239815]
[1767377686416,2.30769468,3123.0,3122.4,2.33964687]
[1767377686630,0.002,3123.5,3122.8,3.87975955]
[1767377686844,0.002,3123.5,3123.0,3.87975955]
[1767377687045,0.002,3123.5,3122.9,3.17964687]
[1767377687715,0.002,3123.5,3123.1,2.33964687]
[1767377688711,0.002,3123.5,3123.1,0.84]
[1767377688712,2.30969468,3123.5,3123.1,0.84]
[1767377689133,0.002,3123.5,3123.1,0.84]
[1767377689437,0.002,3123.5,3123.2,6.21940642]
[1767377689844,0.002,3123.5,3123.2,2.33964687]
[1767377690414,0.002,3124.1,3123.4,6.21940642]
[1767377690632,3.20294202,3124.1,3123.5,2.33964687]
[1767377690838,2.30769468,3124.0,3123.2,6.21940642]
[1767377691034,2.30769468,3124.0,3123.3,3.20174174]
[1767377691539,2.30769468,3123.9,3123.2,5.54147222]
[1767377692613,2.30769468,3123.9,3123.2,2.33964687]
[1767377693619,2.30769468,3123.9,3123.2,8.74328186]
[1767377694556,2.30769468,3123.9,3123.2,5.5414376]
[1767377695262,2.30769468,3123.8,3123.2,2.33964687]
[1767377695417,2.30769468,3123.8,3123.3,0.84]
[1767377696419,2.30769468,3123.8,3123.3,4.04172845]
[1767377697650,2.30769468,3123.8,3123.3,6.38137532]
[1767377698548,0.002,3123.9,3123.4,2.33964687]
[1767377698869,0.002,3124.1,3123.5,2.33964687]
[1767377700068,0.002,3124.1,3123.7,2.33130132]
[1767377700250,2.43658858,3124.1,3123.4,2.33130132]
[1767377700446,6.40246666,3124.8,3124.2,1.37279097]
[1767377700746,6.40246666,3124.8,3123.6,5.53273556]
[1767377700747,2.43458858,3124.6,3124.0,0.84]
[1767377700937,2.46660394,3124.6,3124.0,0.84]
[1767377701137,2.43458858,3124.6,3124.0,0.84]
[1767377702066,2.43458858,3124.5,3124.0,0.84]
[1767377702471,2.43458858,3124.5,3124.0,0.75062141]
[1767377702655,0.56350123,3124.4,3124.0,0.75062141]
[1767377703046,2.46660394,3124.3,3123.7,2.33130132]
[1767377703347,2.43458858,3124.3,3123.1,2.33230132]
[1767377703555,2.43458858,3124.3,3123.3,3.20173767]
[1767377703756,2.43458858,3124.1,3123.4,2.33130132]
[1767377703965,5.63523599,3124.4,3123.7,2.33130132]
[1767377704168,8.8358834,3124.4,3123.7,2.33130132]
[1767377704577,5.63523599,3124.4,3123.7,2.33130132]
[1767377704895,8.8358834,3124.4,3123.7,2.33130132]
[1767377705069,0.88358834,3124.3,3123.7,2.33130132]
[1767377705394,0.88358834,3124.3,3123.5,3.20150968]
[1767377705395,2.43458858,3124.2,3123.5,3.20150968]
[1767377705890,2.43458858,3124.2,3123.6,3.23336642]
[1767377706491,2.43458858,3124.2,3123.5,3.23351809]
[1767377707192,2.43458858,3124.1,3123.5,3.20150273]
[1767377708261,3.20262536,3124.4,3123.6,2.36331566]
[1767377708262,0.002,3124.4,3123.6,2.36331566]
[1767377708485,2.43658858,3124.4,3123.7,0.839]
[1767377708690,0.002,3124.8,3123.8,2.36331361]
[1767377708991,0.002,3124.8,3124.0,2.33130132]
[1767377709300,0.002,3124.8,3124.4,0.01978166]
[1767377709466,0.28590567,3124.8,3124.4,0.01978166]
[1767377710793,0.28390567,3124.7,3124.4,0.01978166]
[1767377710985,0.28390567,3124.7,3124.0,3.20097993]
[1767377711397,0.40214304,3124.7,3122.4,5.3745975]
[1767377711612,3.20222357,3124.8,3123.1,2.33230132]
[1767377711613,0.40214304,3124.5,3123.1,2.33230132]
[1767377711763,0.40214304,3124.3,3123.1,2.33230132]
[1767377712798,0.4341584,3124.3,3123.1,2.33230132]
[1767377713089,0.40214304,3124.1,3123.1,2.33230132]
[1767377713296,0.84,3124.0,3123.1,2.33230132]
[1767377715290,6.40225358,3123.9,3123.1,2.33230132]
[1767377715493,0.72422536,3123.8,3123.1,2.33230132]
[1767377716595,3.20112679,3123.9,3123.1,2.33230132]
[1767377716812,3.20071696,3124.3,3123.2,2.36331976]
[1767377717092,4.04265793,3124.4,3123.2,2.36331976]
[1767377717293,0.002,3124.4,3123.2,2.36331976]
[1767377717477,0.002,3124.4,3123.4,2.33130132]
[1767377717671,0.002,3124.4,3123.6,2.33130132]
[1767377717879,0.002,3124.4,3123.7,2.36331463]
[1767377718609,0.002,3124.4,3123.7,2.33130132]
[1767377719403,0.002,3124.4,3123.9,2.33130132]
[1767377721601,4.0422377,3124.8,3123.9,2.33130132]
[1767377721602,0.002,3124.8,3124.4,2.33130132]
[1767377721891,0.002,3125.2,3124.8,2.33130132]
[1767377722192,3.2018087,3125.2,3124.8,2.33130132]
[1767377723214,3.2018087,3125.2,3124.1,2.36331053]
[1767377723513,3.2018087,3125.2,3124.2,2.33130132]
[1767377723713,0.002,3125.2,3124.4,2.33130132]
[1767377727887,0.002,3125.2,3124.6,2.26702203]
[1767377728936,0.002,3125.7,3124.9,2.26702203]
[1767377729287,0.15,3125.9,3125.3,2.26702203]
[1767377729488,0.15,3125.9,3125.5,2.46477891]
[1767377730296,3.34909308,3125.9,3125.5,2.46477891]
[1767377730487,0.15,3125.9,3125.5,2.46477891]
[1767377731584,0.07542038,3125.9,3125.6,2.46477891]
[1767377731786,0.002,3126.5,3125.8,2.46477891]
[1767377732399,0.002,3126.5,3125.9,2.46477891]
[1767377734138,0.002,3126.5,3126.0,2.46477891]
[1767377734836,0.002,3126.5,3125.6,2.46477891]
[1767377734995,0.002,3126.5,3125.7,3.19927808]
[1767377735337,0.002,3126.5,3125.8,2.46477891]
[1767377735839,0.002,3126.5,3125.9,2.46477891]
[1767377736722,0.002,3126.5,3126.0,2.46477891]
[1767377737828,0.002,3126.5,3125.6,2.46477891]
[1767377738192,0.40414304,3126.4,3125.6,2.46477891]
[1767377738525,0.68030725,3126.3,3125.6,2.46477891]
[1767377740232,6.39774798,3126.1,3125.3,2.46477891]
[1767377740611,6.80189102,3126.1,3125.3,2.46477891]
[1767377742148,6.80230036,3125.9,3125.0,2.46477891]
[1767377742714,2.3544551,3125.7,3123.9,0.001]
[1767377742917,2.3544551,3125.7,3124.3,3.20064879]
[1767377743266,2.3544551,3125.7,3124.4,2.46477891]
[1767377743548,2.67380061,3125.6,3124.6,2.46477891]
[1767377743960,2.67380061,3125.6,3124.2,2.46477891]
[1767377744376,2.3544551,3125.4,3124.2,2.46477891]
[1767377744534,2.3544551,3125.2,3124.2,2.46477891]
[1767377744737,2.3544551,3125.2,3123.9,0.001]
[1767377744919,2.3544551,3125.0,3123.9,0.001]
[1767377746316,2.3544551,3124.8,3123.9,0.001]
[1767377746550,2.3544551,3124.6,3123.2,2.46477891]
[1767377746718,2.3544551,3124.6,3123.1,0.001]
[1767377747723,2.3544551,3124.5,3123.1,0.001]
[1767377748031,2.3544551,3124.3,3123.1,0.001]
[1767377748235,2.3544551,3124.1,3123.1,0.001]
[1767377748439,2.3544551,3123.9,3123.1,0.001]
[1767377749732,2.3544551,3123.9,3122.4,0.001]
[1767377751018,2.3544551,3123.7,3122.4,0.001]
[1767377751222,2.3544551,3123.5,3122.4,0.001]
[1767377753122,2.3544551,3123.3,3123.0,0.001]
[1767377753455,2.3544551,3123.3,3122.4,0.001]
[1767377755234,2.3544551,3123.1,3122.4,0.001]
[1767377755433,3.1944551,3123.0,3122.4,0.001]
[1767377755648,0.31944551,3122.9,3122.4,0.001]
[1767377756146,2.67390061,3122.9,3122.0,0.001]
[1767377756356,2.67390061,3122.9,3122.0,2.46577891]
[1767377757530,6.40450876,3122.8,3122.0,2.46577891]
[1767377760357,3.20225438,3122.8,3122.0,2.46577891]
[1767377760559,1.22805223,3122.7,3122.0,2.46577891]
[1767377761062,6.72381279,3122.9,3122.0,2.46577891]
[1767377761238,3.20215184,3122.9,3122.1,2.49674098]
[1767377761438,0.84,3123.0,3122.1,2.49674098]
[1767377761664,0.84,3123.0,3122.3,2.49674098]
[1767377761958,0.84,3123.0,3122.0,6.40714497]
[1767377761959,3.20178752,3123.3,3122.5,2.49674098]
[1767377762135,6.40357504,3123.3,3122.5,2.74641508]
[1767377762463,6.40327846,3123.4,3122.5,2.74641508]
[1767377762954,8.66015317,3123.4,3122.5,2.49674098]
[1767377764259,8.66015317,3123.4,3122.6,2.49674098]
[1767377764470,5.45851394,3123.4,3122.6,2.49674098]
[1767377764629,3.20163923,3123.4,3122.7,2.49674098]
[1767377765054,4.04163923,3123.4,3122.7,2.49674098]
[1767377765430,4.04163923,3123.4,3122.9,2.49674098]
[1767377765629,7.24327846,3123.4,3122.9,2.49674098]
[1767377766045,0.84,3123.4,3122.9,2.49674098]
[1767377766452,0.84,3123.4,3123.0,2.49674098]
[1767377767037,3.20137504,3123.7,3123.0,2.49674098]
[1767377767239,0.002,3123.9,3123.0,2.49674098]
[1767377767240,3.20318247,3123.9,3123.0,2.49674098]
[1767377767867,0.002,3123.9,3123.0,2.49674098]
[1767377768073,3.20314729,3123.9,3123.0,2.49674098]
[1767377768242,0.002,3123.9,3123.2,2.49674098]
[1767377768441,0.84,3124.3,3123.8,2.49674098]
[1767377768948,4.04075364,3124.3,3123.8,2.49674098]
[1767377769139,7.24150728,3124.3,3123.8,2.49674098]
[1767377769339,4.04075364,3124.3,3123.8,2.49674098]
[1767377771765,3.20023787,3124.8,3123.9,2.49674098]
[1767377771766,0.84,3124.8,3123.9,2.49674098]
[1767377772139,8.65666991,3125.1,3123.9,2.49674098]
[1767377772140,6.3997952,3125.1,3123.9,2.49674098]
[1767377772345,4.04007356,3125.0,3124.1,2.49674098]
[1767377772540,0.84,3125.0,3124.1,2.49674098]
[1767377772741,7.2401928,3125.0,3124.1,2.49674098]
[1767377772941,0.03201536,3124.9,3124.1,2.49674098]
[1767377773148,1.04723046,3124.8,3124.1,2.49674098]
[1767377773670,0.002,3125.2,3124.1,2.49674098]
[1767377773978,3.20183244,3125.2,3124.1,2.49674098]
[1767377774695,0.002,3125.1,3124.3,2.49674098]
[1767377774840,0.002,3125.2,3124.9,2.49674098]
[1767377775742,0.002,3125.2,3124.6,2.49674098]
[1767377776274,0.72611909,3125.2,3124.6,2.49674098]
[1767377776474,3.1998976,3125.1,3124.6,2.49674098]
[1767377777876,0.002,3125.2,3124.6,2.49674098]
[1767377778067,0.84,3125.4,3125.1,2.49674098]
[1767377778669,4.03959639,3125.4,3125.1,2.49674098]
[1767377778870,0.84,3125.4,3125.1,2.49674098]
[1767377779252,3.19945206,3125.6,3125.1,2.49674098]
[1767377780001,6.398903,3125.6,3125.1,2.49674098]
[1767377780203,3.19945094,3125.6,3125.1,2.49674098]
[1767377780576,6.39890188,3125.6,3125.1,2.49674098]
[1767377780779,6.39856672,3125.7,3125.1,2.49674098]
[1767377781003,7.44253459,3125.7,3125.1,2.49674098]
[1767377781188,7.44253459,3125.7,3125.1,2.4955465]
[1767377782178,7.44253459,3125.7,3124.6,2.49674098]
[1767377782380,7.44253459,3125.7,3124.7,2.49674098]
[1767377782613,7.44253459,3125.7,3124.8,2.49674098]
[1767377782830,0.002,3125.6,3125.0,2.49674098]
[1767377783277,0.002,3125.6,3124.6,2.49674098]
[1767377783278,2.25887471,3125.6,3124.6,2.49674098]
[1767377783609,0.03201536,3125.5,3124.6,2.49674098]
[1767377783772,2.25887471,3125.6,3124.6,2.49674098]
[1767377783976,1.18567743,3125.5,3124.6,2.49674098]
[1767377784986,3.19959045,3125.4,3124.6,2.49674098]
[1767377785215,6.3991809,3125.4,3124.6,2.49674098]
[1767377785812,3.19959045,3125.4,3124.7,2.49674098]
[1767377786017,0.002,3125.9,3124.9,2.49674098]
[1767377786185,0.002,3125.9,3125.1,2.49674098]
[1767377786889,3.19866935,3126.3,3125.9,2.49674098]
[1767377787104,6.3973387,3126.3,3125.9,2.49674098]
[1767377787307,6.3973387,3126.3,3125.9,2.49551595]
[1767377787797,6.3973387,3126.3,3125.9,2.49424408]
[1767377788001,3.19866935,3126.3,3125.9,2.49424408]
[1767377788201,3.19866935,3126.3,3125.0,3.44961918]
[1767377788202,7.12147031,3126.3,3125.0,0.2496741]
[1767377788422,7.12147031,3126.3,3125.4,2.43175314]
[1767377788931,2.43537105,3126.2,3125.2,2.43175314]
[1767377789088,8.80110367,3126.1,3125.2,2.43175314]
[1767377789694,2.28285247,3126.0,3124.9,5.62372442]
[1767377789925,2.28285247,3125.8,3124.9,5.62372442]
[1767377790523,2.28285247,3125.8,3125.0,5.62360182]
[1767377790728,2.28285247,3125.8,3125.0,2.4246276]
[1767377791016,2.28285247,3125.8,3125.0,5.62461038]
[1767377791314,5.48208405,3125.8,3125.0,5.62461038]
[1767377791522,3.19923158,3125.8,3125.0,5.62461038]
[1767377791722,6.39846316,3125.8,3125.0,2.4246276]
[1767377792420,2.28285247,3125.7,3125.0,0.001]
[1767377792588,2.28285247,3125.5,3124.4,2.4236276]
[1767377792920,12.79692632,3125.8,3124.4,2.4236276]
[1767377792921,2.28285247,3125.3,3124.4,2.4236276]
[1767377793099,3.19969282,3125.3,3124.5,2.4236276]
[1767377793443,6.39938564,3125.3,3124.5,2.4236276]
[1767377795738,6.39938564,3125.3,3124.1,5.62450237]
[1767377795739,2.28285247,3125.2,3124.1,5.62450237]
[1767377795942,2.28285247,3125.2,3124.1,2.4236276]
[1767377796234,2.28285247,3125.2,3124.2,2.4236276]
[1767377797123,2.28285247,3125.2,3124.3,3.20071186]
[1767377797326,6.3997952,3125.1,3124.3,2.4236276]
[1767377797638,3.1998976,3125.1,3124.5,2.4236276]
[1767377798011,6.3997952,3125.1,3124.5,2.4236276]
[1767377798215,7.03977472,3125.1,3124.5,2.4236276]
[1767377798708,3.1998976,3125.1,3124.5,2.4236276]
[1767377799107,6.3997952,3125.1,3124.5,0.001]
[1767377799331,2.28285247,3125.1,3124.5,0.001]
[1767377800126,2.28285247,3125.1,3123.8,0.001]
[1767377800335,2.28285247,3125.1,3123.8,2.45663989]
[1767377800508,2.28285247,3124.9,3123.8,0.001]
[1767377800710,1.18822381,3125.0,3123.8,0.001]
[1767377800711,2.28285247,3124.7,3123.8,0.001]
[1767377801437,2.28285247,3124.5,3123.8,0.001]
[1767377803342,6.40122902,3124.4,3123.8,0.001]
[1767377803539,0.839,3124.3,3123.8,0.001]
[1767377804542,2.28285247,3124.2,3123.8,0.001]
[1767377805238,2.28285247,3124.0,3123.8,0.001]
[1767377805641,3.20092186,3124.1,3123.8,0.001]
[1767377808128,6.40173833,3124.2,3123.8,0.001]
[1767377810417,2.28285247,3124.1,3123.8,0.001]
[1767377810622,0.86845908,3124.0,3123.8,0.001]
[1767377810818,2.28285247,3123.9,3123.2,0.001]
[1767377811430,2.28285247,3123.9,3123.2,2.4246276]
[1767377812855,5.48403135,3123.9,3123.2,5.62645982]
[1767377813059,5.48403135,3123.9,3123.2,2.4246276]
[1767377817149,3.20117888,3123.9,3123.2,5.62645662]
[1767377817351,3.20117888,3123.9,3123.3,2.4236276]
[1767377818539,4.04107447,3124.0,3123.3,2.4236276]
[1767377818928,2.28285247,3124.6,3123.3,2.4236276]
[1767377819259,2.28285247,3124.6,3123.7,2.26371878]
[1767377819260,3.20051208,3124.5,3123.7,2.26371878]
[1767377819752,5.48332737,3124.6,3123.7,2.26371878]
[1767377819753,2.28285247,3124.6,3123.7,2.26371878]
[1767377819959,0.84,3124.7,3123.7,2.26371878]
[1767377820256,0.84,3125.1,3123.9,2.26371878]
[1767377820858,3.20176849,3125.3,3124.1,2.26371878]
[1767377821258,0.002,3125.3,3124.3,2.26371878]
[1767377823360,0.002,3125.3,3124.5,2.26371878]
[1767377824560,0.002,3125.6,3125.2,2.26371878]
[1767377824858,0.002,3125.6,3125.3,2.26371878]
[1767377825164,0.002,3125.6,3124.5,0.839]
[1767377825165,0.002,3125.6,3125.0,2.26371878]
[1767377825749,0.002,3125.6,3125.1,2.26371878]
[1767377827752,0.002,3125.6,3124.9,3.20004401]
[1767377828058,0.002,3125.6,3125.0,3.19998837]
[1767377829166,0.002,3125.6,3124.9,5.46379956]
[1767377829341,0.002,3125.6,3124.9,2.26371878]
[1767377829545,2.2655225,3125.5,3124.6,2.26371878]
[1767377829850,2.2655225,3125.3,3124.6,2.26371878]
[1767377830159,2.2655225,3125.3,3125.0,0.001]
[1767377830863,2.29753786,3125.3,3125.0,0.001]
[1767377831364,2.2655225,3125.3,3125.0,0.001]
[1767377833758,2.2655225,3125.2,3125.0,0.001]
[1767377834070,2.2655225,3125.1,3125.0,0.001]
[1767377835074,2.2655225,3125.0,3123.2,3.20279491]
[1767377835271,2.2655225,3124.8,3123.8,8.66717732]
[1767377835574,2.2655225,3124.8,3123.9,2.26371878]
[1767377835876,3.20004103,3125.0,3123.9,2.26371878]
[1767377836894,6.40008206,3125.0,3123.9,2.26371878]
[1767377837183,0.002,3125.6,3123.9,2.26371878]
[1767377837402,0.002,3125.6,3124.4,2.26371878]
[1767377837696,0.002,3125.6,3124.6,2.26371878]
[1767377837978,0.002,3125.6,3124.8,2.26371878]
[1767377838497,0.002,3125.6,3124.8,2.29572082]
[1767377838646,0.002,3125.6,3124.8,2.26371878]
[1767377839240,0.002,3125.6,3124.9,2.26371878]
[1767377840059,2.49427475,3125.6,3124.7,3.20024411]
[1767377840293,2.52629011,3125.6,3124.6,5.46410524]
[1767377840488,2.52629011,3125.6,3124.4,3.20058138]
[1767377840692,2.52629011,3125.6,3124.3,2.26371878]
[1767377840693,2.49427475,3125.6,3124.3,2.26371878]
[1767377841068,2.49427475,3125.6,3124.3,5.46437083]
[1767377841393,8.66490814,3125.3,3124.3,5.46437083]
[1767377841560,3.1045225,3125.2,3124.3,2.26371878]
[1767377841766,3.1045225,3125.2,3124.3,5.46439935]
[1767377842165,2.2655225,3125.1,3124.3,5.46439935]
[1767377843179,0.839,3125.2,3124.4,2.26371878]
[1767377843778,4.03885768,3125.2,3124.4,5.46423724]
[1767377843978,7.27073072,3125.2,3124.4,2.26371878]
[1767377844187,7.23871536,3125.2,3124.4,2.26371878]
[1767377844384,9.50423786,3125.2,3124.4,2.26371878]
[1767377845291,2.2655225,3125.1,3124.1,2.26371878]
[1767377845485,2.2655225,3125.0,3124.1,2.26371878]
[1767377845684,6.4002048,3124.9,3124.4,0.001]
[1767377845884,2.2655225,3124.8,3123.9,0.001]
[1767377846090,2.2655225,3124.6,3123.9,0.001]
[1767377846287,2.2655225,3124.6,3123.7,0.001]
[1767377846485,2.2655225,3124.6,3123.1,0.001]
[1767377847170,2.2655225,3124.6,3123.2,2.26471878]
[1767377847370,2.2655225,3124.6,3123.4,5.63106529]
[1767377847692,3.20061451,3124.4,3123.5,2.42942931]
[1767377847899,6.40122902,3124.4,3123.5,2.42942931]
[1767377848107,0.839,3124.3,3123.5,5.63092724]
[1767377848412,0.839,3124.3,3123.5,2.42942931]
[1767377848766,0.839,3124.3,3123.2,0.001]
[1767377848767,2.32298293,3124.2,3123.2,0.001]
[1767377848974,0.31619829,3124.1,3123.2,0.001]
[1767377849482,2.63334429,3124.1,3123.2,0.001]
[1767377850089,6.40204864,3124.0,3123.2,0.001]
[1767377850298,3.20102432,3124.0,3123.2,0.001]
[1767377850600,0.84,3123.9,3123.2,2.32246909]
[1767377850787,0.84,3123.9,3123.2,0.001]
[1767377851099,1.82753929,3123.9,3123.2,0.001]
[1767377851484,1.82753929,3123.9,3123.2,2.32246909]
[1767377851688,0.84,3123.9,3123.4,2.32146909]
[1767377851887,3.200927,3124.1,3123.4,2.32146909]
[1767377852063,0.84,3124.2,3123.4,3.20161324]
[1767377852271,3.20061451,3124.4,3123.5,2.35348445]
[1767377852609,0.84,3124.5,3123.5,2.35348445]
[1767377852917,2.317146,3125.5,3123.7,2.32146909]
[1767377853071,2.317146,3125.5,3123.4,9.6048917]
[1767377853072,3.157146,3125.4,3123.9,2.32146909]
[1767377853272,3.20142744,3125.6,3124.1,2.32146909]
[1767377853520,7.24085488,3125.6,3124.3,2.32146909]
[1767377853686,7.24085488,3125.6,3124.5,2.32146909]
[1767377853889,7.24085488,3125.6,3124.7,2.32146909]
[1767377854276,12.75742832,3125.6,3124.6,0.23534752]
[1767377854601,12.75742832,3125.6,3124.3,5.52213851]
[1767377854602,12.75742832,3125.6,3124.4,2.32146909]
[1767377855132,2.317146,3125.5,3124.0,2.32146909]
[1767377855809,2.317146,3125.5,3124.3,3.20065821]
[1767377856335,3.19959045,3125.4,3124.5,2.32146909]
[1767377856503,4.03959045,3125.4,3124.6,2.55681661]
[1767377856829,7.2391809,3125.4,3124.6,2.55681661]
[1767377857019,9.5563269,3125.4,3124.2,5.52228813]
[1767377857401,9.5563269,3125.4,3124.3,2.32146909]
[1767377857802,9.5563269,3125.4,3124.4,2.32146909]
[1767377858506,2.317146,3125.3,3124.2,3.2008067]
[1767377858722,3.27277869,3125.2,3124.3,3.20070452]
[1767377859027,3.27277869,3125.2,3124.4,0.001]
[1767377859228,0.03201536,3125.1,3124.4,0.001]
[1767377859436,2.34916136,3125.1,3124.4,0.001]
[1767377859637,2.317146,3125.1,3124.4,0.001]
[1767377859846,2.64442387,3125.0,3124.4,0.001]
[1767377860055,0.84,3124.9,3124.4,0.001]
[1767377860256,8.74957098,3124.8,3124.4,0.001]
[1767377860408,8.71755562,3124.8,3124.4,0.001]
[1767377861240,2.317146,3124.7,3123.7,2.32146909]
[1767377861547,9.60061443,3124.8,3123.7,2.32146909]
[1767377861548,3.50892204,3124.6,3123.7,2.32146909]
[1767377862224,6.40102416,3124.5,3123.7,2.32146909]
[1767377862427,0.84,3124.4,3123.7,5.52279169]
[1767377863207,3.20051208,3124.5,3123.7,5.52279169]
[1767377863402,4.04051208,3124.5,3123.7,5.52279169]
[1767377863626,0.84,3124.5,3123.7,8.72412344]